bitfinex/quotes_BTCUSD_20260311
["timestamp","ask_amount","ask_price","bid_price","bid_amount"]
[1773237927551,0.00152,70434.0,70406.0,0.13994286]
[1773237927981,0.00152,70434.0,70407.0,0.14006563]
[1773237928192,0.13552145,70434.0,70408.0,0.14006563]
[1773237928450,0.07098945,70433.0,70409.0,0.21107927]
[1773237928685,0.13400145,70432.0,70410.0,0.14006563]
[1773237928948,0.10164067,70430.0,70392.0,0.07123012]
[1773237929133,0.13400145,70429.0,70393.0,0.07102941]
[1773237929832,0.13400145,70428.0,70393.0,0.07102941]
[1773237930033,0.13400145,70427.0,70393.0,0.07258941]
[1773237930327,0.07099852,70424.0,70393.0,0.07258941]
[1773237930831,0.00152,70423.0,70393.0,0.07258941]
[1773237931033,0.13400145,70422.0,70393.0,0.07102941]
[1773237931235,0.13400145,70422.0,70394.0,0.00152]
[1773237931666,0.0384,70421.0,70392.0,0.07123047]
[1773237931871,0.13400145,70420.0,70393.0,0.07102978]
[1773237932104,0.13400145,70420.0,70392.0,0.0002]
[1773237932280,0.07101566,70407.0,70382.0,0.07104089]
[1773237932446,0.13552145,70406.0,70382.0,0.07104089]
[1773237932637,0.13552145,70406.0,70378.0,0.0002]
[1773237932839,0.13552145,70406.0,70378.0,0.07124473]
[1773237933043,0.13552145,70406.0,70378.0,0.07124444]
[1773237933866,0.00152,70405.0,70378.0,0.07124444]
[1773237934191,0.00152,70405.0,70379.0,0.00152]
[1773237934394,0.07101869,70404.0,70380.0,0.0710429]
[1773237934573,0.00152,70403.0,70380.0,0.0710429]
[1773237935178,0.13400145,70402.0,70380.0,0.0710429]
[1773237936333,0.0710076,70415.0,70380.0,0.0710429]
[1773237936334,0.00152,70409.0,70381.0,0.53962702]
[1773237936527,0.75436829,70422.0,70382.0,0.07104089]
[1773237936528,0.00152,70408.0,70382.0,0.07104089]
[1773237936730,0.0710086,70414.0,70382.0,0.07104089]
[1773237936927,0.00152,70410.0,70382.0,0.07104089]
[1773237937132,0.13400145,70409.0,70379.0,0.07104294]
[1773237937364,0.00152,70410.0,70379.0,0.07104294]
[1773237937567,0.00152,70410.0,70380.0,0.00152]
[1773237937765,0.13400145,70419.0,70381.0,0.53716737]
[1773237937766,0.00152,70417.0,70381.0,0.53716737]
[1773237938168,0.07252496,70418.0,70381.0,0.63108789]
[1773237938350,0.00022001,70409.0,70381.0,0.63108789]
[1773237938546,0.13400145,70407.0,70382.0,0.07256089]
[1773237938751,0.07101465,70408.0,70383.0,0.53597878]
[1773237938948,0.07101465,70408.0,70384.0,0.00152]
[1773237939557,0.07101465,70408.0,70382.0,0.07104089]
[1773237939772,0.07101465,70408.0,70385.0,0.00152]
[1773237940173,0.13249188,70407.0,70386.0,0.00152]
[1773237940558,0.07101667,70406.0,70387.0,0.07103584]
[1773237940989,0.07101667,70406.0,70387.0,0.07255584]
[1773237941254,0.00174001,70417.0,70387.0,0.07255584]
[1773237941457,0.00022001,70417.0,70387.0,0.07255584]
[1773237941869,0.16899491,70437.0,70390.0,0.12721278]
[1773237942067,0.21220963,70436.0,70391.0,0.09242543]
[1773237942268,0.16899491,70434.0,70391.0,0.09242543]
[1773237942522,0.07099045,70432.0,70392.0,0.07103079]
[1773237942800,0.07098936,70434.0,70392.0,0.07103079]
[1773237942801,0.13249188,70434.0,70392.0,0.07103079]
[1773237943020,0.13249188,70429.0,70392.0,0.07103079]
[1773237943299,0.13249188,70427.0,70393.0,0.00152]
[1773237943530,0.27371509,70427.0,70394.0,0.00152]
[1773237943716,0.14122321,70426.0,70394.0,0.00152]
[1773237944120,0.00152,70433.0,70392.0,0.07103079]
[1773237944121,0.13249188,70432.0,70395.0,0.00152]
[1773237944285,0.27371509,70432.0,70395.0,0.00152]
[1773237944482,0.14122321,70431.0,70395.0,0.00152]
[1773237944684,0.21240867,70431.0,70396.0,0.07254676]
[1773237944900,0.14141721,70430.0,70396.0,0.07254676]
[1773237945105,0.07099146,70431.0,70396.0,0.07102676]
[1773237945305,0.07099129,70432.0,70397.0,0.00152]
[1773237945692,0.07099129,70432.0,70398.0,0.09097988]
[1773237946098,0.21247219,70433.0,70399.0,0.00152]
[1773237946336,0.07120161,70441.0,70401.0,0.09097988]
[1773237946643,0.07120161,70441.0,70402.0,0.0710207]
[1773237946820,0.13249188,70440.0,70403.0,0.00152]
[1773237947040,1e-08,70441.0,70404.0,0.09062085]
[1773237947381,1e-08,70441.0,70412.0,0.09062085]
[1773237947656,1e-08,70441.0,70413.0,0.00152]
[1773237947958,1e-08,70441.0,70412.0,0.09062085]
[1773237948154,0.07098194,70441.0,70412.0,0.09062085]
[1773237948361,0.07098194,70441.0,70402.0,0.0710207]
[1773237948362,0.12721278,70440.0,70402.0,0.0710207]
[1773237948520,0.13249188,70438.0,70402.0,0.0710207]
[1773237948717,0.13249188,70436.0,70391.0,0.0710318]
[1773237948940,0.13249188,70436.0,70392.0,0.00152]
[1773237949255,0.13249188,70436.0,70393.0,0.00152]
[1773237949458,0.13249188,70436.0,70412.0,0.001]
[1773237949662,0.13249188,70436.0,70391.0,0.2204718]
[1773237949663,0.13249188,70436.0,70413.0,0.00152]
[1773237949837,0.13249188,70436.0,70414.0,0.00152]
[1773237950011,0.13249188,70436.0,70415.0,0.00148]
[1773237950213,0.13249188,70436.0,70397.0,0.0903995]
[1773237950214,0.13249188,70436.0,70416.0,0.00148]
[1773237950562,0.13249188,70436.0,70417.0,0.00148]
[1773237950563,0.13349188,70436.0,70417.0,0.00148]
[1773237950759,0.07098743,70435.0,70418.0,0.00148]
[1773237950937,0.07098743,70435.0,70419.0,0.00148]
[1773237951173,0.13751179,70429.0,70398.0,0.07102474]
[1773237951768,0.13751179,70429.0,70399.0,0.00148]
[1773237951969,0.13751179,70429.0,70400.0,0.00148]
[1773237952564,0.13851179,70429.0,70400.0,0.00148]
[1773237952785,0.13851179,70429.0,70381.0,0.0002]
[1773237952985,0.13751179,70427.0,70383.0,0.07103988]
[1773237953189,0.13751179,70419.0,70384.0,0.00148]
[1773237953390,0.12721278,70420.0,70384.0,0.00148]
[1773237953391,0.13751179,70417.0,70384.0,0.00148]
[1773237953706,0.13751179,70417.0,70385.0,0.00148]
[1773237953908,0.13751179,70417.0,70383.0,0.07103988]
[1773237954271,0.13751179,70417.0,70384.0,0.00148]
[1773237955004,0.13751179,70415.0,70385.0,0.07103786]
[1773237955581,0.13751179,70415.0,70386.0,0.00148]
[1773237956398,0.13851179,70415.0,70386.0,0.00148]
[1773237956602,0.00152,70414.0,70386.0,0.00148]
[1773237956921,0.13903179,70414.0,70386.0,0.00148]
[1773237957122,0.13903179,70414.0,70387.0,0.07103584]
[1773237957123,0.07100961,70413.0,70387.0,0.07103584]
[1773237958100,0.07100875,70414.0,70387.0,0.07103584]
[1773237959116,0.07100875,70414.0,70388.0,0.00152]
[1773237959312,0.07100875,70414.0,70385.0,0.07103786]
[1773237959517,0.13751179,70413.0,70385.0,0.07103786]
[1773237959791,0.13751179,70413.0,70386.0,0.00152]
[1773237960278,0.00152,70424.0,70386.0,0.00152]
[1773237960493,0.0712178,70425.0,70391.0,0.10672247]
[1773237960649,0.00022001,70425.0,70391.0,0.10672247]
[1773237960855,1e-08,70432.0,70401.0,0.10637789]
[1773237961037,1e-08,70432.0,70404.0,0.07101869]
[1773237961237,1e-08,70432.0,70405.0,0.00152]
[1773237961606,1e-08,70432.0,70406.0,0.10604804]
[1773237962411,1e-08,70432.0,70405.0,0.00152]
[1773237962412,1e-08,70432.0,70407.0,0.00152]
[1773237962632,1e-08,70432.0,70404.0,0.07101869]
[1773237962894,1e-08,70432.0,70405.0,0.00152]
[1773237963298,1e-08,70432.0,70407.0,0.10304751]
[1773237964356,1e-08,70432.0,70406.0,0.07101667]
[1773237964602,1e-08,70432.0,70407.0,0.00152]
[1773237965311,1e-08,70432.0,70408.0,0.07101465]
[1773237966285,1e-08,70432.0,70409.0,0.00152]
[1773237966688,1e-08,70432.0,70408.0,0.07101465]
[1773237966930,1e-08,70432.0,70409.0,0.00152]
[1773237967283,1e-08,70432.0,70411.0,0.12435547]
[1773237967684,1e-08,70441.0,70412.0,0.10135208]
[1773237969128,1e-08,70441.0,70413.0,0.00152]
[1773237969363,1e-08,70441.0,70414.0,0.19149164]
[1773237969661,0.00152,70451.0,70414.0,0.19149164]
[1773237969662,1e-08,70456.0,70421.0,0.12014828]
[1773237969819,0.07096656,70456.0,70422.0,0.1496]
[1773237970037,1e-08,70456.0,70430.0,0.12718452]
[1773237970238,1e-08,70456.0,70431.0,0.00152]
[1773237970441,1e-08,70456.0,70426.0,0.1496]
[1773237970651,1e-08,70456.0,70430.0,0.12718452]
[1773237970855,1e-08,70456.0,70431.0,0.11982681]
[1773237971271,1e-08,70456.0,70432.0,0.07099045]
[1773237971679,1e-08,70456.0,70433.0,0.09562632]
[1773237971878,1e-08,70456.0,70434.0,0.00152]
[1773237972057,1e-08,70456.0,70436.0,0.16840545]
[1773237972259,1e-08,70456.0,70437.0,0.00152]
[1773237972477,1e-08,70456.0,70433.0,0.16840545]
[1773237972697,1e-08,70456.0,70413.0,0.35026605]
[1773237972698,0.1375118,70456.0,70427.0,0.07099539]
[1773237972907,0.55770207,70439.0,70417.0,0.00152]
[1773237973107,0.13751179,70438.0,70418.0,0.00152]
[1773237973470,0.13751179,70438.0,70418.0,0.07252455]
[1773237973471,0.13751179,70436.0,70418.0,0.07252455]
[1773237973884,0.07098541,70437.0,70418.0,0.07252455]
[1773237974271,0.07098541,70437.0,70390.0,0.35158396]
[1773237974272,0.12718452,70430.0,70390.0,0.35158396]
[1773237974476,0.13751179,70409.0,70381.0,0.07124157]
[1773237974723,0.13751179,70407.0,70381.0,0.0002]
[1773237974922,0.00152,70408.0,70377.0,0.0002]
[1773237974923,0.13751179,70399.0,70377.0,0.0002]
[1773237975122,0.13751179,70397.0,70377.0,0.00172]
[1773237975269,0.13185915,70397.0,70377.0,0.0002]
[1773237975477,0.07102676,70396.0,70377.0,0.07137437]
[1773237975719,0.07102474,70398.0,70377.0,0.07137437]
[1773237976370,0.07102007,70403.0,70381.0,0.002]
[1773237976581,0.07101364,70409.0,70381.0,0.0021287]
[1773237977456,0.07101364,70409.0,70382.0,0.07104089]
[1773237977645,0.07101278,70410.0,70382.0,0.07104089]
[1773237978147,0.07101278,70410.0,70383.0,0.00152]
[1773237978307,0.14115361,70411.0,70383.0,0.00152]
[1773237978496,0.20851552,70419.0,70384.0,0.54443919]
[1773237978497,0.07100558,70417.0,70384.0,0.54443919]
[1773237978702,0.14108092,70418.0,70384.0,0.54443919]
[1773237978896,0.14107555,70430.0,70400.0,0.12718452]
[1773237979099,0.14107555,70430.0,70384.0,0.54443919]
[1773237979100,0.13751179,70429.0,70384.0,0.54443919]
[1773237979435,0.13751179,70427.0,70386.0,0.07103685]
[1773237980242,0.13751179,70427.0,70387.0,0.00152]
[1773237980416,0.12826287,70419.0,70386.0,0.07103685]
[1773237980618,14.7555,70397.0,70386.0,0.07103685]
[1773237980813,14.7555,70397.0,70387.0,0.00152]
[1773237981011,14.7555,70397.0,70385.0,0.0001287]
[1773237981243,14.7555,70397.0,70382.0,0.0002]
[1773237981462,0.19929064,70395.0,70377.0,0.07276528]
[1773237981948,0.19929064,70395.0,70377.0,0.0002]
[1773237982195,0.19929064,70395.0,70377.0,0.07124531]
[1773237982521,0.12718452,70390.0,70374.0,0.07124886]
[1773237982722,0.12718452,70390.0,70350.0,0.41985565]
[1773237982723,0.12826287,70389.0,70358.0,1e-08]
[1773237982906,0.12826287,70369.0,70351.0,0.07107167]
[1773237983064,0.12826287,70367.0,70343.0,0.07107934]
[1773237983496,0.19931991,70366.0,70343.0,0.07107934]
[1773237983859,0.19931991,70366.0,70342.0,0.07108027]
[1773237984066,0.12718452,70350.0,70324.0,0.07109939]
[1773237984319,0.12718452,70350.0,70325.0,0.00152]
[1773237984320,0.55462015,70349.0,70325.0,0.00152]
[1773237984615,0.12826287,70348.0,70325.0,0.00152]
[1773237984818,0.00152,70349.0,70325.0,0.001445]
[1773237985028,0.00152,70349.0,70323.0,0.07102549]
[1773237985194,0.12826287,70348.0,70324.0,0.002445]
[1773237985396,0.07107623,70347.0,70324.0,0.001]
[1773237985608,0.12718452,70340.0,70320.0,0.07110296]
[1773237985810,0.12826287,70346.0,70320.0,0.07110296]
[1773237986220,0.07107623,70347.0,70320.0,0.07262296]
[1773237986391,0.00152,70346.0,70320.0,0.07262296]
[1773237986590,0.00152,70346.0,70321.0,0.00152]
[1773237986796,0.00152,70346.0,70325.0,0.001]
[1773237986797,0.12826287,70345.0,70325.0,0.001]
[1773237987097,0.00152,70346.0,70320.0,0.07262296]
[1773237987292,0.00152,70346.0,70320.0,0.07362296]
[1773237987523,0.12826287,70344.0,70323.0,0.0002]
[1773237987729,0.07107825,70345.0,70320.0,0.07110288]
[1773237987730,0.12718452,70340.0,70320.0,0.07110288]
[1773237987991,0.00152,70341.0,70320.0,0.07110288]
[1773237988416,0.0710702,70353.0,70320.0,0.07110288]
[1773237988618,0.00152,70352.0,70320.0,0.07110288]
[1773237988926,0.07107118,70354.0,70321.0,0.48655462]
[1773237989056,0.12826287,70353.0,70320.0,0.07110288]
[1773237989258,0.07107118,70354.0,70319.0,0.07364411]
[1773237989259,0.12826287,70349.0,70319.0,0.0025416]
[1773237989510,0.07108432,70339.0,70319.0,0.0025416]
[1773237989711,0.12978287,70338.0,70319.0,0.0025416]
[1773237990007,0.12978287,70338.0,70319.0,0.07364514]
[1773237990432,0.12978287,70338.0,70319.0,0.0025416]
[1773237990755,0.12978287,70338.0,70319.0,0.0024666]
[1773237990924,0.12978287,70338.0,70319.0,0.0023916]
[1773237991157,0.12978287,70338.0,70319.0,0.0023166]
[1773237991340,0.07260432,70339.0,70319.0,0.07334512]
[1773237991567,0.07260432,70339.0,70319.0,0.07327012]
[1773237991891,0.00252,70338.0,70319.0,0.07479012]
[1773237992143,0.001,70338.0,70319.0,0.07479012]
[1773237992500,0.12826287,70348.0,70319.0,0.07479012]
[1773237992706,0.18918816,70368.0,70319.0,0.07479012]
[1773237992707,0.07105506,70368.0,70332.0,0.1338794]
[1773237992911,0.07105506,70368.0,70333.0,0.00152]
[1773237993266,0.00152,70367.0,70332.0,0.1338794]
[1773237993392,0.12826287,70366.0,70334.0,0.00152]
[1773237993594,0.12826287,70366.0,70335.0,0.00152]
[1773237993798,0.19823954,70370.0,70335.0,0.00152]
[1773237993799,0.00152,70365.0,70336.0,0.07108735]
[1773237994250,0.07105199,70371.0,70336.0,0.07108735]
[1773237994424,0.24160443,70379.0,70336.0,0.07108735]
[1773237994425,0.07103717,70386.0,70341.0,0.1338794]
[1773237994873,0.00152,70385.0,70341.0,0.1338794]
[1773237995072,0.00152,70385.0,70342.0,0.00152]
[1773237995818,0.07103887,70384.0,70344.0,0.1338794]
[1773237996017,0.07255887,70384.0,70344.0,0.1338794]
[1773237996506,0.00152,70388.0,70351.0,0.54323617]
[1773237996705,0.00152,70388.0,70352.0,0.00152]
[1773237997111,0.00152,70387.0,70352.0,0.00152]
[1773237998102,0.00152,70387.0,70353.0,0.07107017]
[1773237998474,0.07102978,70393.0,70354.0,0.1338794]
[1773237998726,0.00152,70391.0,70354.0,0.1338794]
[1773237998900,0.07102727,70396.0,70354.0,0.1338794]
[1773237999279,0.07102727,70396.0,70354.0,0.2835194]
[1773237999482,0.07102727,70396.0,70355.0,0.00152]
[1773238000155,14.82804676,70397.0,70357.0,0.13675024]
[1773238000156,14.7555,70397.0,70357.0,0.13675024]
[1773238000321,14.7555,70397.0,70370.0,0.12718452]
[1773238000522,14.7555,70397.0,70371.0,0.00152]
[1773238000724,14.7555,70397.0,70372.0,0.00152]
[1773238000931,14.7555,70397.0,70373.0,0.00152]
[1773238001101,14.7555,70397.0,70374.0,0.00152]
[1773238001305,0.07102676,70396.0,70375.0,0.00152]
[1773238001522,0.07102676,70396.0,70361.0,0.13675024]
[1773238001523,14.82652676,70397.0,70376.0,0.00152]
[1773238001739,14.0020875,70397.0,70377.0,0.00152]
[1773238001938,14.0020875,70397.0,70378.0,0.00152]
[1773238002164,14.0020875,70397.0,70379.0,0.00152]
[1773238002362,14.07311336,70397.0,70371.0,0.07105199]
[1773238002570,14.07311336,70397.0,70372.0,0.00152]
[1773238002763,14.0020875,70397.0,70372.0,0.00152]
[1773238003300,14.0020875,70397.0,70378.0,0.001]
[1773238003500,14.0020875,70397.0,70372.0,0.00152]
[1773238003737,14.07311332,70397.0,70373.0,0.00152]
[1773238004178,14.0020875,70397.0,70374.0,0.07104896]
[1773238004585,14.0020875,70397.0,70375.0,0.00152]
[1773238004766,14.07311337,70397.0,70376.0,0.00152]
[1773238004966,14.07311337,70397.0,70374.0,0.07104896]
[1773238005117,14.07311337,70397.0,70377.0,0.00152]
[1773238005304,14.07311337,70397.0,70374.0,0.07104896]
[1773238005530,0.12877971,70396.0,70359.0,0.07106411]
[1773238005732,0.12877971,70395.0,70360.0,0.00152]
[1773238006150,0.12877971,70395.0,70360.0,0.07106209]
[1773238006151,0.12877971,70389.0,70360.0,0.07106209]
[1773238006365,0.12877971,70389.0,70357.0,0.07126585]
[1773238006366,0.12877971,70387.0,70358.0,0.00152]
[1773238006565,0.12877971,70387.0,70359.0,0.001]
[1773238006993,0.12877971,70387.0,70359.0,0.00152]
[1773238007651,0.12877971,70387.0,70357.0,0.07126537]
[1773238007839,0.12877971,70387.0,70357.0,0.0002]
[1773238008221,0.12877971,70385.0,70357.0,0.07126613]
[1773238008421,0.07103685,70386.0,70357.0,0.07126613]
[1773238008623,0.12877971,70377.0,70351.0,0.00152]
[1773238008822,0.13029971,70376.0,70350.0,0.0710732]
[1773238009026,0.13029971,70376.0,70351.0,0.00152]
[1773238009226,0.13029971,70376.0,70349.0,0.0002]
[1773238009423,0.12877971,70369.0,70336.0,0.07108713]
[1773238009662,0.12877971,70359.0,70326.0,0.00152]
[1773238009907,0.12533703,70348.0,70320.0,0.07262352]
[1773238010118,0.12533703,70346.0,70320.0,0.00152]
[1773238010260,0.07107825,70345.0,70321.0,0.07110251]
[1773238010480,0.12533703,70344.0,70322.0,0.00152]
[1773238010946,0.00152,70343.0,70321.0,0.07110251]
[1773238011142,0.00152,70343.0,70322.0,0.00152]
[1773238011557,0.00152,70342.0,70322.0,0.00152]
[1773238011767,0.00152,70342.0,70323.0,0.00152]
[1773238011980,0.12533703,70339.0,70320.0,0.07110352]
[1773238012179,0.12533703,70339.0,70319.0,0.0023666]
[1773238012180,0.12533703,70339.0,70319.0,0.07347012]
[1773238012382,0.07108533,70338.0,70319.0,0.07347012]
[1773238013291,0.12533703,70337.0,70316.0,1e-08]
[1773238013464,0.12533703,70329.0,70315.0,1e-08]
[1773238013666,0.12533703,70329.0,70311.0,0.07131261]
[1773238013667,0.00152,70328.0,70311.0,0.07131252]
[1773238013997,0.07108533,70338.0,70312.0,0.00152]
[1773238013998,0.00152,70335.0,70312.0,0.00152]
[1773238014203,0.00152,70334.0,70313.0,0.00152]
[1773238014478,0.00152,70334.0,70311.0,0.07131249]
[1773238014479,0.12533703,70331.0,70311.0,0.07131249]
[1773238014823,0.12533703,70331.0,70311.0,0.0002]
[1773238015023,0.12533703,70331.0,70311.0,0.07131243]
[1773238015224,0.12533703,70331.0,70311.0,0.0002]
[1773238015486,0.07109139,70332.0,70308.0,0.0002]
[1773238015487,0.12718452,70330.0,70308.0,0.0002]
[1773238015687,0.12718452,70330.0,70304.0,0.0002]
[1773238015688,0.57649156,70318.0,70300.0,0.01]
[1773238015839,0.12533703,70316.0,70286.0,0.07113771]
[1773238016033,0.12533703,70314.0,70287.0,0.07113593]
[1773238016236,0.14093469,70313.0,70288.0,0.00152]
[1773238016462,0.14093469,70313.0,70284.0,0.07113691]
[1773238016463,0.12533703,70311.0,70284.0,0.07113691]
[1773238016665,0.2120463,70312.0,70264.0,0.07857639]
[1773238016666,0.12753229,70300.0,70264.0,0.07857639]
[1773238017010,0.14093469,70309.0,70271.0,0.12880955]
[1773238017217,0.14093469,70311.0,70271.0,0.12880955]
[1773238017368,0.07263161,70313.0,70271.0,0.12880955]
[1773238018117,0.2660805,70312.0,70272.0,0.00152]
[1773238018415,0.07111262,70311.0,70273.0,0.07115108]
[1773238018562,0.21177093,70311.0,70273.0,0.07115108]
[1773238018765,0.07111262,70311.0,70273.0,0.07115108]
[1773238019410,0.00152,70314.0,70280.0,0.12753229]
[1773238019610,0.00152,70314.0,70281.0,0.00152]
[1773238020027,0.14056953,70316.0,70281.0,0.00152]
[1773238020200,0.14056953,70319.0,70282.0,0.12880955]
[1773238020416,0.14056953,70321.0,70283.0,0.07114095]
[1773238020581,0.11245593,70335.0,70301.0,0.5357349]
[1773238020784,0.11245593,70338.0,70303.0,0.12880955]
[1773238021012,0.00764,70377.0,70310.0,0.12753229]
[1773238021013,0.07107758,70346.0,70310.0,0.12753229]
[1773238021362,0.12685703,70341.0,70301.0,0.5357349]
[1773238021569,0.12533703,70339.0,70302.0,0.00152]
[1773238022042,0.12533703,70339.0,70303.0,0.00152]
[1773238022218,0.12533703,70339.0,70301.0,0.5357349]
[1773238022542,0.12533703,70339.0,70283.0,0.10348911]
[1773238022543,0.12533703,70329.0,70302.0,0.00152]
[1773238022759,0.00152,70328.0,70303.0,0.00152]
[1773238022950,0.12533703,70328.0,70292.0,0.5357349]
[1773238023153,0.12533703,70328.0,70293.0,0.00152]
[1773238023557,0.07108533,70338.0,70293.0,0.00152]
[1773238023558,0.00152,70336.0,70293.0,0.13032955]
[1773238023901,0.07108533,70338.0,70293.0,0.13032955]
[1773238024110,0.07108533,70338.0,70300.0,0.12753229]
[1773238024306,0.07108533,70338.0,70302.0,0.12880955]
[1773238024657,0.07108533,70341.0,70303.0,0.07112072]
[1773238025211,0.12533703,70339.0,70303.0,0.07112072]
[1773238025416,0.07108533,70341.0,70304.0,0.00152]
[1773238025417,0.12753229,70330.0,70304.0,0.00152]
[1773238025616,0.12685703,70329.0,70304.0,0.00152]
[1773238025812,0.12685703,70328.0,70304.0,0.00152]
[1773238026038,0.00152,70327.0,70303.0,0.07212072]
[1773238026237,0.12533703,70326.0,70303.0,0.07212072]
[1773238026441,0.07109847,70325.0,70305.0,0.07111869]
[1773238026730,0.07108229,70343.0,70306.0,0.00152]
[1773238027048,0.07108229,70341.0,70307.0,0.12880955]
[1773238027235,0.07108229,70341.0,70307.0,0.27856955]
[1773238027396,0.07108229,70341.0,70308.0,0.00152]
[1773238027598,0.12533703,70340.0,70305.0,0.06203869]
[1773238027799,0.12533703,70340.0,70309.0,0.00152]
[1773238028227,0.12533703,70340.0,70305.0,0.06203869]
[1773238028431,0.00022001,70330.0,70306.0,0.00152]
[1773238028634,0.00022001,70330.0,70307.0,0.07111667]
[1773238028808,0.07131353,70330.0,70307.0,0.07111667]
[1773238029009,0.00022001,70330.0,70307.0,0.07111667]
[1773238029570,0.07131385,70330.0,70308.0,0.00152]
[1773238029769,0.07131385,70330.0,70309.0,0.00152]
[1773238030126,0.07131407,70330.0,70309.0,0.00152]
[1773238030297,0.07131407,70330.0,70310.0,0.00152]
[1773238030493,0.07131407,70330.0,70307.0,0.07111667]
[1773238030712,0.07131407,70330.0,70308.0,0.00152]
[1773238031219,0.07131407,70330.0,70304.0,0.07111667]
[1773238031220,0.12533703,70329.0,70304.0,0.07111667]
[1773238031465,0.12533703,70329.0,70296.0,0.07112773]
[1773238031671,0.57649156,70319.0,70297.0,0.00152]
[1773238031918,0.00152,70318.0,70297.0,0.00152]
[1773238032283,0.00152,70319.0,70297.0,0.00152]
[1773238032686,0.07109746,70326.0,70298.0,0.07112577]
[1773238033267,0.12533703,70324.0,70297.0,0.07112679]
[1773238033467,0.57649156,70319.0,70296.0,0.07112711]
[1773238033640,0.12685703,70318.0,70298.0,0.00152]
[1773238033843,0.12685703,70318.0,70298.0,0.00252]
[1773238034466,0.14074202,70318.0,70298.0,0.00252]
[1773238034671,0.00152,70318.0,70298.0,0.07212542]
[1773238034915,0.12533703,70317.0,70299.0,0.00152]
[1773238035293,0.14081772,70318.0,70299.0,0.00152]
[1773238035503,0.14081066,70322.0,70298.0,0.07112542]
[1773238035733,0.12753229,70310.0,70295.0,0.0002]
[1773238035911,0.32436708,70323.0,70295.0,0.0713288]
[1773238035912,0.00152,70315.0,70295.0,0.0713288]
[1773238036113,0.07110049,70323.0,70296.0,0.00148]
[1773238036465,0.14081354,70324.0,70296.0,0.00148]
[1773238036617,0.07109948,70325.0,70297.0,0.07112679]
[1773238036814,0.07109948,70326.0,70300.0,0.12753229]
[1773238036815,0.14081354,70326.0,70300.0,0.12753229]
[1773238037015,0.00022001,70330.0,70301.0,0.12880955]
[1773238037227,0.0001502,70342.0,70301.0,0.12880955]
[1773238037424,0.07123155,70342.0,70311.0,0.12880955]
[1773238037622,0.07123149,70342.0,70312.0,0.15128]
[1773238037940,0.07123149,70342.0,70311.0,0.27856955]
[1773238038138,0.07123149,70342.0,70312.0,0.00152]
[1773238038352,0.0001502,70342.0,70313.0,0.12880955]
[1773238038515,0.07123172,70342.0,70313.0,0.12880955]
[1773238038717,0.0001502,70342.0,70314.0,0.07110959]
[1773238039364,1e-08,70342.0,70315.0,0.13032955]
[1773238039573,1e-08,70342.0,70321.0,0.5357349]
[1773238039939,1e-08,70342.0,70322.0,0.00152]
[1773238040139,1e-08,70342.0,70321.0,0.5357349]
[1773238040344,1e-08,70342.0,70322.0,0.00152]
[1773238040779,1e-08,70342.0,70323.0,0.00152]
[1773238041441,1e-08,70345.0,70323.0,0.00152]
[1773238041688,1e-08,70358.0,70330.0,0.2587903]
[1773238041889,0.07106525,70358.0,70331.0,0.13125801]
[1773238042103,0.0710652,70358.0,70332.0,0.00152]
[1773238042311,0.0710652,70358.0,70333.0,0.00152]
[1773238042448,0.07106581,70358.0,70333.0,0.00152]
[1773238042652,0.07106581,70358.0,70332.0,0.1498]
[1773238043003,1e-08,70358.0,70330.0,0.07109341]
[1773238043320,0.13068726,70356.0,70331.0,0.00152]
[1773238043526,0.58417169,70349.0,70309.0,0.07111465]
[1773238043929,0.00152,70349.0,70310.0,0.00152]
[1773238044168,0.00152,70352.0,70310.0,0.00152]
[1773238044933,0.58417169,70349.0,70311.0,0.07263262]
[1773238045136,0.12753229,70340.0,70312.0,0.00152]
[1773238045331,0.13220726,70339.0,70313.0,0.00152]
[1773238045573,0.13220726,70339.0,70314.0,0.00152]
[1773238045778,0.13220726,70339.0,70315.0,0.00152]
[1773238045980,0.13220726,70339.0,70316.0,0.00152]
[1773238046182,0.13220726,70339.0,70303.0,0.07111994]
[1773238046410,0.13220726,70339.0,70304.0,0.00152]
[1773238046949,0.07108533,70338.0,70305.0,0.07111869]
[1773238047090,0.07108533,70338.0,70306.0,0.00152]
[1773238047496,0.11318558,70348.0,70321.0,0.57525855]
[1773238047732,0.07129665,70347.0,70322.0,0.00152]
[1773238047931,0.07129624,70347.0,70322.0,0.00152]
[1773238048752,0.07129624,70347.0,70305.0,0.07111869]
[1773238048925,0.13068726,70343.0,70308.0,0.07111566]
[1773238049272,0.14152737,70342.0,70308.0,0.07111566]
[1773238049456,0.14152737,70341.0,70308.0,0.07111566]
[1773238049652,0.14152737,70340.0,70308.0,0.07111566]
[1773238049855,0.14152737,70339.0,70309.0,0.00152]
[1773238050025,0.14152737,70338.0,70309.0,0.00152]
[1773238050222,0.14152737,70337.0,70309.0,0.00152]
[1773238050475,0.14152737,70336.0,70310.0,0.00152]
[1773238050821,0.14152737,70335.0,70310.0,0.00152]
[1773238050982,0.21261674,70334.0,70311.0,0.07111262]
[1773238051180,0.14152737,70333.0,70311.0,0.07111262]
[1773238051585,0.14152737,70332.0,70312.0,0.00152]
[1773238051817,0.14152737,70333.0,70312.0,0.00152]
[1773238052025,0.14152737,70332.0,70312.0,0.00152]
[1773238052223,0.14152737,70333.0,70312.0,0.00152]
[1773238052521,0.14152737,70332.0,70312.0,0.00152]
[1773238052671,0.14152737,70333.0,70312.0,0.00152]
[1773238052873,0.14152737,70334.0,70313.0,0.0711106]
[1773238053168,0.21261408,70337.0,70313.0,0.0711106]
[1773238053378,0.14152737,70336.0,70313.0,0.0711106]
[1773238053562,0.14152737,70335.0,70314.0,0.00152]
[1773238053703,0.07108671,70337.0,70304.0,0.0711197]
[1773238053704,0.13068726,70333.0,70304.0,0.0711197]
[1773238053908,0.13068726,70331.0,70305.0,0.00152]
[1773238054111,0.14152737,70330.0,70305.0,0.00152]
[1773238054334,0.14152737,70329.0,70305.0,0.00152]
[1773238054544,0.14152737,70328.0,70305.0,0.00152]
[1773238054739,0.14152737,70332.0,70305.0,0.00152]
[1773238054934,0.11318558,70334.0,70305.0,0.00152]
[1773238054935,0.21262034,70331.0,70306.0,0.07111768]
[1773238055139,0.14152737,70330.0,70307.0,0.00152]
[1773238055354,0.27221463,70329.0,70312.0,0.0002]
[1773238055566,0.07109297,70331.0,70312.0,0.0002]
[1773238055741,0.21271645,70331.0,70312.0,0.0002]
[1773238056300,0.14162348,70330.0,70312.0,0.0002]
[1773238056525,0.27231074,70329.0,70313.0,0.00152]
[1773238056724,0.13068726,70327.0,70314.0,0.00152]
[1773238056928,0.07109847,70325.0,70315.0,0.00152]